bitfinex/quotes_SOLUSD_20240705
["timestamp","ask_amount","ask_price","bid_price","bid_amount"]
[1720149947485,0.1,123.89,123.8,8.0775]
[1720149947676,0.1,123.89,123.82,30.0]
[1720149948386,0.1,123.89,123.79,48.66]
[1720149948567,0.1,123.89,123.8,28.2711]
[1720149948882,0.1,123.89,123.84,8.0747]
[1720149949188,0.1,123.89,123.88,8.0723]
[1720149949572,0.1,123.89,123.88,8.2423]
[1720149949787,0.1,123.89,123.88,56.9023]
[1720149950085,0.1,123.89,123.88,20.17]
[1720149950498,0.1,123.89,123.88,0.17]
[1720149950711,0.1,123.89,123.82,20.189]
[1720149951359,0.1,123.89,123.78,20.1963]
[1720149951687,0.1,123.89,123.81,20.1917]
[1720149951901,0.1,123.89,123.84,8.0749]
[1720149952190,0.1,123.89,123.8,92.41]
[1720149952191,0.1,123.89,123.8,112.6027]
[1720149952396,0.1,123.89,123.8,30.0]
[1720149952696,12.6249,123.88,123.79,1.86869134]
[1720149952863,0.17,123.87,123.76,20.1992]
[1720149953066,0.1,123.89,123.75,48.66]
[1720149953362,0.1,123.89,123.76,68.8601]
[1720149953567,0.1,123.89,123.77,8.0792]
[1720149953761,0.1,123.89,123.76,48.66]
[1720149953983,0.1,123.89,123.76,56.7395]
[1720149954166,0.1,123.89,123.78,8.0787]
[1720149954779,0.1,123.89,123.79,20.0]
[1720149955181,0.1,123.89,123.79,68.66]
[1720149955360,0.1,123.89,123.81,20.1919]
[1720149955559,0.1,123.89,123.82,20.17]
[1720149955781,0.1,123.89,123.83,8.0752]
[1720149955982,0.1,123.89,123.84,20.17]
[1720149956172,0.1,123.89,123.84,20.0]
[1720149956576,0.1,123.89,123.82,20.0]
[1720149956891,0.1,123.89,123.83,0.17]
[1720149957274,0.1,123.89,123.8,20.0]
[1720149958765,0.27,123.89,123.8,20.0]
[1720149959378,8.3423,123.89,123.79,6.98060036]
[1720149959696,0.27,123.89,123.76,8.08]
[1720149959999,0.1,123.89,123.75,28.79914694]
[1720149960206,0.1,123.89,123.76,8.0795]
[1720149960493,0.1,123.89,123.77,8.0793]
[1720149960794,21.3794,123.87,123.75,6.72795158]
[1720149960987,0.17,123.86,123.75,6.72795158]
[1720149961184,0.17,123.86,123.73,8.0821]
[1720149961185,0.17,123.86,123.71,8.0827]
[1720149961587,0.17,123.86,123.67,109.93755636]
[1720149961588,8.0749,123.84,123.67,30.15245636]
[1720149961816,0.17,123.83,123.69,8.0847]
[1720149962104,0.17,123.83,123.7,20.21]
[1720149962275,0.17,123.83,123.67,6.74775172]
[1720149962475,0.17,123.83,123.66,20.2152]
[1720149962476,62.58,123.83,123.66,20.2152]
[1720149962681,62.58,123.83,123.69,8.0846]
[1720149962882,62.58,123.83,123.68,20.2121]
[1720149963087,46.1179,123.82,123.65,120.2182]
[1720149963287,0.17,123.81,123.68,20.2132]
[1720149963599,0.17,123.81,123.65,8.79590149]
[1720149963600,0.80853817,123.7,123.65,8.79590149]
[1720149964377,0.80853817,123.7,123.65,1.87080712]
[1720149964695,0.80853817,123.7,123.61,20.2235]
[1720149964879,0.17,123.69,123.6,6.87864015]
[1720149965079,0.17,123.69,123.54,32.8708]
[1720149965576,0.17,123.69,123.57,8.0925]
[1720149965995,0.80853817,123.7,123.56,148.66]
[1720149966273,13.0117,123.72,123.65,20.2171]
[1720149966477,6.75143587,123.83,123.68,8.0853]
[1720149966478,30.6259,123.78,123.68,8.0853]
[1720149966786,30.6259,123.78,123.69,20.0]
[1720149966978,30.6259,123.78,123.66,28.0865]
[1720149966979,30.6259,123.78,123.66,20.0]
[1720149967194,30.6259,123.78,123.7,20.2087]
[1720149967394,30.6259,123.78,123.71,0.17]
[1720149967594,12.3882,123.82,123.72,20.2057]
[1720149967802,12.3882,123.82,123.73,20.17]
[1720149968484,12.3882,123.82,123.75,8.0805]
[1720149968718,0.1,123.89,123.76,20.17]
[1720149968894,32.1838,123.89,123.76,20.0]
[1720149969074,32.1838,123.89,123.78,20.1966]
[1720149969276,32.1838,123.89,123.79,20.17]
[1720149969476,32.1838,123.89,123.81,8.0763]
[1720149969811,32.1838,123.89,123.82,20.0]
[1720149970601,32.1838,123.89,123.81,20.17]
[1720149970821,32.1838,123.89,123.77,20.1985]
[1720149970975,32.1838,123.89,123.78,0.17]
[1720149971177,32.1838,123.89,123.77,20.1974]
[1720149971691,12.924,123.87,123.71,30.9488]
[1720149971894,12.924,123.87,123.67,100.0]
[1720149971895,84.84196908,123.86,123.67,100.0]
[1720149972110,62.41,123.84,123.7,8.0838]
[1720149972274,0.17,123.83,123.67,6.80605121]
[1720149972481,0.17,123.83,123.7,8.084]
[1720149972776,0.17,123.83,123.65,6.89299225]
[1720149972777,12.924,123.81,123.65,6.89299225]
[1720149972986,32.6282,123.79,123.62,20.2218]
[1720149973189,32.6282,123.79,123.59,13.1042]
[1720149973190,12.924,123.75,123.59,20.2276]
[1720149973384,0.17,123.74,123.61,8.0895]
[1720149973687,0.17,123.74,123.62,8.0891]
[1720149973992,0.17,123.74,123.6,8.09]
[1720149974184,0.17,123.74,123.61,8.0898]
[1720149974395,0.17,123.74,123.6,20.2253]
[1720149974396,8.2518,123.74,123.6,20.2253]
[1720149974714,8.2518,123.74,123.58,8.0918]
[1720149974715,32.2012,123.72,123.58,8.0918]
[1720149975016,0.17,123.71,123.57,14.88240946]
[1720149975195,20.17,123.71,123.56,20.2314]
[1720149975913,20.17,123.71,123.58,8.0918]
[1720149976118,0.17,123.71,123.59,20.2281]
[1720149976320,0.17,123.71,123.56,27.05111056]
[1720149976501,0.17,123.71,123.54,8.0945]
[1720149976502,12.4326,123.7,123.54,8.0945]
[1720149976820,12.4326,123.7,123.51,0.1]
[1720149976821,8.088,123.64,123.51,0.1]
[1720149977000,32.4326,123.63,123.51,0.1]
[1720149977393,0.17,123.62,123.51,0.1]
[1720149977704,0.17,123.62,123.54,8.0943]
[1720149977910,12.4326,123.63,123.53,8.0945]
[1720149978223,12.4326,123.63,123.51,0.1]
[1720149978425,0.17,123.62,123.51,0.1]
[1720149978716,12.4326,123.63,123.51,0.1]
[1720149978717,12.4326,123.63,123.53,20.2377]
[1720149978900,12.4326,123.63,123.58,8.0919]
[1720149979096,32.9907,123.67,123.56,40.4658]
[1720149979297,32.9907,123.67,123.59,8.0911]
[1720149979692,32.9907,123.67,123.51,115.1]
[1720149979693,32.9907,123.67,123.51,0.1]
[1720149979915,32.9907,123.67,123.51,20.1]
[1720149980115,32.9907,123.67,123.54,8.0944]
[1720149980316,32.9907,123.67,123.53,20.2376]
[1720149980507,0.17,123.66,123.51,0.1]
[1720149981021,0.17,123.66,123.52,20.2382]
[1720149981519,0.17,123.66,123.51,0.1]
[1720149981520,105.01196908,123.66,123.51,0.1]
[1720149981697,8.0891,123.63,123.51,0.1]
[1720149981894,0.17,123.62,123.51,0.1]
[1720149982101,12.9775,123.61,123.51,0.1]
[1720149982315,0.17,123.6,123.51,0.1]
[1720149983052,12.9775,123.61,123.51,0.1]
[1720149983223,12.9775,123.61,123.53,20.2367]
[1720149983427,12.9775,123.61,123.54,0.17]
[1720149983594,12.9775,123.61,123.53,20.2367]
[1720149983800,12.9775,123.66,123.54,0.17]
[1720149984125,12.9775,123.71,123.58,100.0]
[1720149984308,12.9775,123.71,123.59,20.17]
[1720149984516,12.9775,123.71,123.61,8.0899]
[1720149984820,12.9775,123.71,123.62,20.0]
[1720149985131,12.9775,123.71,123.5,13.0893]
[1720149985132,97.81946908,123.71,123.5,13.0893]
[1720149985311,62.41,123.7,123.53,6.83840263]
[1720149985514,62.41,123.7,123.55,20.2336]
[1720149985707,62.41,123.7,123.52,100.0]
[1720149986031,12.9775,123.71,123.63,8.0885]
[1720149986198,12.9775,123.71,123.61,20.2239]
[1720149986399,12.9775,123.71,123.62,0.17]
[1720149986727,21.061,123.71,123.58,20.0]
[1720149986917,12.9775,123.71,123.59,8.2612]
[1720149987112,12.9775,123.71,123.6,20.0]
[1720149987308,12.9775,123.71,123.62,8.0891]
[1720149987510,12.9775,123.71,123.63,20.0]
[1720149987911,21.0614,123.71,123.63,20.0]
[1720149988136,12.9775,123.71,123.53,62.58502447]
[1720149988441,8.0856,123.68,123.53,30.20522447]
[1720149988648,8.0846,123.7,123.53,22.11012447]
[1720149988938,20.17,123.69,123.53,1.87262447]
[1720149989106,8.2547,123.69,123.54,8.0944]
[1720149989311,8.2547,123.69,123.53,1.87262447]
[1720149989312,70.4966,123.67,123.53,1.87262447]
[1720149989513,0.17,123.66,123.53,9.96772447]
[1720149989713,0.17,123.66,123.53,1.87262447]
[1720149989714,20.17,123.66,123.53,1.87262447]
[1720149990120,8.088,123.64,123.53,1.87262447]
[1720149990331,20.17,123.63,123.53,1.87262447]
[1720149990804,28.2592,123.63,123.53,1.87262447]
[1720149991003,39.6079,123.62,123.53,1.87262447]
[1720149991222,20.17,123.61,123.53,1.87262447]
[1720149991426,28.2599,123.61,123.53,1.87262447]
[1720149991624,20.17,123.61,123.53,1.87262447]
[1720149992129,28.2602,123.61,123.51,0.1]
[1720149992308,20.17,123.61,123.51,0.1]
[1720149992830,31.3561,123.67,123.54,62.41]
[1720149993055,31.3561,123.67,123.55,20.0]
[1720149993207,31.3561,123.67,123.55,40.2341]
[1720149993535,31.3561,123.67,123.55,20.0]
[1720149993706,31.3561,123.67,123.51,8.1959]
[1720149993707,8.0873,123.66,123.52,20.0]
[1720149993907,21.0828,123.65,123.51,8.1964]
[1720149994113,12.9954,123.65,123.52,20.0]
[1720149994338,12.9954,123.65,123.51,8.1964]
[1720149994507,20.17,123.64,123.52,28.3338]
[1720149994713,0.17,123.64,123.52,20.2386]
[1720149995516,0.17,123.64,123.51,0.1]
[1720149995517,0.17,123.64,123.53,20.0]
[1720149995729,0.17,123.64,123.51,0.1]
[1720149995935,0.17,123.64,123.51,28.4369]
[1720149996317,0.17,123.64,123.52,20.0]
[1720149996619,0.17,123.64,123.53,8.0948]
[1720149996832,12.9954,123.65,123.56,8.0929]
[1720149997148,12.9954,123.65,123.57,20.0]
[1720149997734,12.9954,123.65,123.56,20.0]
[1720149998149,12.9954,123.65,123.57,20.4004]
[1720149998355,12.9954,123.65,123.6,8.09]
[1720149998526,12.6702,123.69,123.61,40.2234]
[1720149998716,12.6702,123.69,123.62,8.0891]
[1720149999036,12.6702,123.69,123.63,20.0]
[1720149999511,12.6702,123.69,123.61,20.0]
[1720149999716,12.6702,123.69,123.62,8.0892]
[1720149999939,12.6702,123.69,123.63,20.0]
[1720150000135,12.6702,123.69,123.57,28.3229]
[1720150000638,12.6702,123.69,123.56,8.0931]
[1720150000845,0.17,123.68,123.54,89.59946269]
[1720150001027,0.17,123.68,123.58,8.0917]
[1720150001541,0.17,123.68,123.56,20.2319]
[1720150001542,0.17,123.68,123.59,20.0]
[1720150001722,0.17,123.68,123.57,28.092]
[1720150001923,0.17,123.68,123.58,8.0917]
[1720150002120,0.17,123.68,123.59,20.0]
[1720150002457,0.17,123.68,123.58,20.2287]
[1720150002739,12.6702,123.69,123.6,8.0903]
[1720150003045,12.6702,123.69,123.61,28.0897]
[1720150003247,12.6702,123.69,123.61,20.0]
[1720150003536,0.80899604,123.62,123.61,20.0]
[1720150003741,0.80899604,123.62,123.59,0.17]
[1720150004042,0.80899604,123.62,123.61,8.0899]
[1720150004245,0.80899604,123.62,123.61,28.2599]
[1720150005247,0.80899604,123.62,123.61,20.17]
[1720150005425,0.80899604,123.62,123.61,0.17]
[1720150005622,31.7469,123.71,123.63,8.0886]
[1720150005820,31.7469,123.71,123.64,0.17]
[1720150006035,31.7469,123.71,123.64,20.0]
[1720150006644,31.7469,123.71,123.61,40.2237]
[1720150006851,31.7469,123.71,123.62,0.17]
[1720150007236,31.7469,123.71,123.61,20.0]
[1720150007422,31.7469,123.71,123.62,0.17]
[1720150007628,0.17,123.7,123.6,40.2257]
[1720150007842,0.17,123.7,123.61,0.17]
[1720150008065,0.17,123.7,123.59,6.84138118]
[1720150008434,0.17,123.7,123.57,20.2312]
[1720150008751,0.17,123.7,123.53,31.791]
[1720150008752,12.4537,123.69,123.56,8.0931]
[1720150008920,0.17,123.68,123.56,8.0931]
[1720150009121,0.17,123.68,123.55,8.0937]
[1720150009537,8.0861,123.67,123.54,6.90842593]
[1720150009750,31.6469,123.65,123.53,8.095]
[1720150009948,0.17,123.64,123.53,8.095]
[1720150010326,12.4537,123.63,123.53,28.3322]
[1720150010654,12.4537,123.63,123.51,0.1]
[1720150010858,0.17,123.62,123.51,0.1]
[1720150011727,8.2593,123.62,123.51,0.1]
[1720150011948,0.17,123.62,123.51,0.1]
[1720150012363,32.8507,123.61,123.51,0.1]
[1720150012652,0.17,123.6,123.51,0.1]
[1720150012853,12.6765,123.59,123.51,0.1]
[1720150013078,8.262,123.58,123.51,0.1]
[1720150013246,8.0926,123.57,123.42,8.1022]
[1720150013434,0.17,123.56,123.43,8.1016]
[1720150013633,12.6765,123.56,123.41,8.49620716]
[1720150013836,85.01196908,123.55,123.41,8.49620716]
[1720150014036,0.17,123.55,123.41,8.203]
[1720150014250,30.448,123.54,123.41,0.1]
[1720150014464,0.17,123.53,123.41,8.203]
[1720150014760,0.17,123.53,123.41,0.1]
[1720150014930,0.17,123.53,123.45,8.0998]
[1720150015126,0.17,123.53,123.41,0.1]
[1720150015579,0.17,123.53,123.42,28.3566]
[1720150015766,30.448,123.54,123.44,20.2516]
[1720150015930,30.448,123.54,123.44,28.3525]
[1720150016130,30.448,123.54,123.46,20.2484]
[1720150016348,12.6765,123.56,123.48,20.2448]
[1720150016533,12.6765,123.56,123.49,20.17]
[1720150016736,12.6765,123.56,123.52,8.0957]
[1720150016960,12.6765,123.56,123.5,20.2413]
[1720150016961,12.6765,123.56,123.53,20.0]
[1720150017334,30.8259,123.59,123.53,20.0]
[1720150017556,12.8154,123.6,123.53,20.0]
[1720150018064,12.8154,123.6,123.51,8.0963]
[1720150018250,12.8154,123.6,123.52,20.0]
[1720150018459,12.8154,123.6,123.51,20.2401]
[1720150018642,12.8154,123.6,123.52,20.0]
[1720150019361,12.8154,123.6,123.46,8.0996]
[1720150019565,12.8154,123.6,123.47,0.17]
[1720150019748,12.8154,123.6,123.47,28.345]
[1720150019946,12.8154,123.6,123.47,20.2466]
[1720150020145,0.17,123.59,123.49,20.2433]
[1720150020350,12.8154,123.6,123.49,20.2433]
[1720150020552,12.8154,123.6,123.52,8.0957]
[1720150020747,12.8154,123.6,123.48,20.2457]
[1720150021046,12.8154,123.6,123.45,35.15044311]
[1720150021370,97.65736908,123.6,123.45,27.02244311]
[1720150021576,8.0921,123.58,123.45,6.77174311]
[1720150021863,0.17,123.57,123.46,8.0996]
[1720150022069,0.17,123.58,123.46,20.248]
[1720150022276,32.4401,123.59,123.52,8.0958]
[1720150022471,32.4401,123.59,123.53,8.0946]
[1720150022788,32.4401,123.59,123.52,20.2387]
[1720150022986,32.4401,123.59,123.53,8.0951]
[1720150023149,32.4401,123.59,123.52,20.2387]
[1720150023355,32.4401,123.59,123.48,8.0983]
[1720150023577,0.80984775,123.5,123.47,8.099]
[1720150024054,0.80984775,123.5,123.46,28.3483]
[1720150024253,0.80984775,123.5,123.46,20.2487]
[1720150024765,0.80984775,123.5,123.47,8.0985]
[1720150024965,0.80984775,123.5,123.41,0.1]
[1720150025354,0.80984775,123.5,123.42,117.96960478]
[1720150025583,32.4401,123.59,123.42,182.25389825]
[1720150025781,32.4401,123.59,123.52,20.2384]
[1720150025983,34.0641234,123.64,123.51,89.1422]
[1720150026278,1.2787234,123.64,123.6,8.0904]
[1720150026482,1.2787234,123.64,123.61,28.0898]
[1720150026654,1.2787234,123.64,123.61,20.0]
[1720150027374,1.2787234,123.64,123.54,28.3293]
[1720150027566,1.2787234,123.64,123.58,8.0916]
[1720150027757,1.2787234,123.64,123.59,20.0]
[1720150028649,1.2787234,123.64,123.58,20.0]
[1720150028852,1.2787234,123.64,123.57,20.0]
[1720150029288,0.17,123.63,123.57,20.0]
[1720150029461,0.17,123.63,123.52,35.17300977]
[1720150029778,0.17,123.63,123.49,74.9451]
[1720150029779,43.4821,123.62,123.49,74.9451]
[1720150029980,0.17,123.61,123.53,8.0951]
[1720150030283,0.17,123.61,123.48,20.2458]
[1720150030484,0.17,123.61,123.49,6.81640595]
[1720150030666,20.17,123.61,123.48,8.0978]
[1720150030870,0.17,123.61,123.49,8.0977]
[1720150031178,43.4821,123.62,123.49,8.0977]
[1720150031179,43.4821,123.62,123.58,8.0919]
[1720150031396,43.4821,123.62,123.54,20.2359]
[1720150031562,13.1009,123.62,123.55,8.0937]
[1720150031877,13.1009,123.62,123.52,8.0953]
[1720150032082,0.17,123.61,123.52,28.0957]
[1720150032288,0.17,123.61,123.51,20.2405]
[1720150032487,0.17,123.61,123.49,1.87323104]
[1720150032790,0.17,123.61,123.48,28.3437]
[1720150032966,20.17,123.61,123.48,28.3437]
[1720150033364,20.17,123.61,123.48,20.2454]
[1720150033567,20.17,123.61,123.44,12.9654]
[1720150033568,32.5274,123.6,123.46,8.0991]
[1720150033776,0.17,123.59,123.47,8.099]
[1720150034175,0.17,123.59,123.45,20.2503]
[1720150034176,12.7148,123.58,123.46,8.0996]
[1720150034382,0.17,123.57,123.47,20.2469]
[1720150034689,0.17,123.57,123.43,48.66]
[1720150034892,0.17,123.57,123.44,20.2521]
[1720150035394,12.7148,123.55,123.38,8.40352042]
[1720150035697,20.8093,123.55,123.4,14.97186705]
[1720150035991,0.17,123.54,123.38,20.2622]
[1720150036292,8.0959,123.52,123.38,20.2622]
[1720150036494,0.17,123.51,123.38,20.2622]
[1720150036968,30.4202,123.5,123.37,8.1056]
[1720150037298,30.4202,123.5,123.36,6.66095713]
[1720150037299,0.17,123.49,123.36,6.66095713]
[1720150037592,12.7148,123.48,123.35,20.267]
[1720150037800,0.17,123.47,123.32,20.2724]
[1720150038143,8.1004,123.45,123.31,8.209]
[1720150038301,0.17,123.44,123.31,0.1]
[1720150038471,0.17,123.44,123.35,8.1069]
[1720150038665,12.7148,123.48,123.35,20.2659]
[1720150038866,12.7148,123.48,123.38,8.105]
[1720150039069,12.7148,123.48,123.31,103.0576]
[1720150039369,12.7148,123.48,123.34,8.107]
[1720150039567,20.8136,123.48,123.33,28.3783]
[1720150039891,12.7148,123.48,123.33,20.2703]
[1720150040199,12.7148,123.48,123.37,8.1051]
[1720150040500,12.7148,123.48,123.39,8.1041]
[1720150040793,12.7148,123.48,123.38,20.2612]
[1720150040979,12.7148,123.48,123.38,28.366]
[1720150041176,12.7148,123.48,123.38,20.2612]
[1720150041497,30.6067,123.51,123.38,20.2612]
[1720150041498,30.6067,123.51,123.45,8.1002]
[1720150041674,13.2143,123.53,123.46,20.0]
[1720150041874,13.2143,123.53,123.48,8.0982]
[1720150042077,12.1673,123.6,123.49,8.0977]
[1720150042292,12.1673,123.6,123.5,40.4127]
[1720150042593,12.1673,123.6,123.5,48.3397]
[1720150042895,12.1673,123.6,123.52,20.238]
[1720150043117,3.46667534,123.64,123.54,8.0944]
[1720150043326,3.46667534,123.64,123.57,8.0923]
[1720150043598,3.46667534,123.64,123.58,20.0]
[1720150043805,3.46667534,123.64,123.55,20.4047]
[1720150043974,3.46667534,123.64,123.56,20.0]
[1720150044180,3.46667534,123.64,123.5,20.0]
[1720150044376,3.46667534,123.64,123.51,20.4098]
[1720150044593,3.46667534,123.64,123.52,20.0]
[1720150045101,84.84196908,123.64,123.49,40.2431]
[1720150045324,8.0906,123.6,123.49,20.0]
[1720150045632,75.3679,123.65,123.47,8.099]
[1720150045633,8.0887,123.63,123.47,8.099]
[1720150045904,0.17,123.62,123.46,20.2493]
[1720150046102,12.9579,123.65,123.47,100.0]
[1720150046299,12.9579,123.65,123.53,20.2364]
[1720150046507,21.0453,123.65,123.5,70.5071]
[1720150046700,8.09,123.61,123.51,20.0]
[1720150046904,84.84196908,123.63,123.47,20.0]
[1720150047080,8.0897,123.62,123.46,8.0994]
[1720150047278,84.84196908,123.6,123.43,20.2539]
[1720150047611,84.84196908,123.6,123.39,53.2536]
[1720150047612,13.2351,123.56,123.39,53.2536]
[1720150047777,8.0939,123.55,123.4,28.362]
[1720150047982,0.17,123.55,123.42,8.1023]
[1720150048184,0.17,123.55,123.41,8.1024]
[1720150048378,0.17,123.55,123.41,8.103]
[1720150048688,0.17,123.55,123.43,8.1015]
[1720150048897,0.17,123.55,123.44,8.101]
[1720150049421,0.17,123.55,123.42,28.3562]
[1720150050117,0.17,123.55,123.43,8.1017]
[1720150050418,0.17,123.55,123.43,8.1016]
[1720150050792,0.17,123.55,123.39,82.6706]
[1720150050991,0.17,123.55,123.42,8.1023]
[1720150051215,0.17,123.55,123.43,20.0]
[1720150051788,0.17,123.55,123.42,20.0]
[1720150052319,85.01196908,123.55,123.37,6.73095278]
[1720150052641,84.84196908,123.53,123.36,20.2647]
[1720150052919,0.17,123.52,123.36,20.2647]
[1720150053716,0.17,123.52,123.38,8.1049]
[1720150053891,0.17,123.52,123.39,8.1042]
[1720150054089,8.2652,123.53,123.38,28.3663]
[1720150054310,85.01196908,123.53,123.35,20.267]
[1720150054522,85.01196908,123.53,123.37,8.1056]
[1720150054523,13.268,123.51,123.37,8.1056]
[1720150054814,0.17,123.5,123.35,20.267]
[1720150055000,84.84196908,123.49,123.34,6.8560347]
[1720150055328,84.84196908,123.49,123.32,20.2719]
[1720150055329,32.83,123.45,123.32,28.3807]
[1720150055502,0.17,123.44,123.32,20.2719]
[1720150055696,0.17,123.44,123.33,8.1082]
[1720150056027,0.17,123.44,123.32,28.3805]
[1720150056324,0.17,123.44,123.32,20.2719]
[1720150056490,0.17,123.44,123.32,28.3808]
[1720150056922,0.17,123.44,123.32,28.3807]
[1720150057240,32.83,123.45,123.38,8.1048]
[1720150057413,32.83,123.45,123.39,20.0]
[1720150058026,44.3091,123.51,123.33,20.0]
[1720150058228,44.3091,123.51,123.34,0.17]
[1720150058428,44.3091,123.51,123.35,28.3733]
[1720150058622,8.0992,123.47,123.36,20.0]
[1720150058821,8.0986,123.48,123.33,28.108]
[1720150059133,8.0986,123.48,123.32,82.6819]
[1720150059134,8.1001,123.46,123.32,20.2719]
[1720150059310,12.8304,123.45,123.32,28.3807]
[1720150059508,12.8304,123.45,123.33,8.1082]
[1720150060545,12.8304,123.45,123.34,20.0]
[1720150060715,12.8304,123.45,123.33,20.2697]
[1720150061414,12.8304,123.45,123.33,28.3779]
[1720150061614,12.6604,123.45,123.33,20.2697]
[1720150061820,12.6604,123.45,123.32,0.17]
[1720150062008,12.6604,123.45,123.32,8.2789]
[1720150062415,12.6604,123.45,123.32,0.17]
[1720150062719,8.1012,123.44,123.31,0.1]
[1720150062917,12.6604,123.45,123.31,0.1]
[1720150063152,8.102,123.43,123.31,0.1]
[1720150063436,0.17,123.42,123.31,0.1]
[1720150063737,0.81096424,123.33,123.31,0.1]
[1720150063948,0.81096424,123.33,123.31,8.2096]
[1720150064241,0.81096424,123.33,123.32,8.1089]
[1720150064831,0.81096424,123.33,123.31,28.4824]
[1720150065024,0.81096424,123.33,123.32,20.0]
[1720150065229,0.81096424,123.33,123.32,20.17]
[1720150065442,0.81096424,123.33,123.32,28.2789]
[1720150065616,0.81096424,123.33,123.32,20.17]
[1720150066328,0.81096424,123.33,123.31,0.1]
[1720150067110,0.81096424,123.33,123.32,8.1089]
[1720150067324,0.81096424,123.33,123.32,28.1089]
[1720150068229,0.81096424,123.33,123.32,28.2789]
[1720150068619,12.6604,123.45,123.32,20.17]
[1720150068924,12.6604,123.45,123.34,8.1075]
[1720150069246,12.6604,123.45,123.35,20.17]
[1720150069739,12.6604,123.45,123.31,8.2096]
[1720150069914,8.1038,123.4,123.32,7.58976748]
[1720150070249,97.50236908,123.45,123.31,0.1]
[1720150070250,8.1045,123.39,123.31,0.1]
[1720150070419,8.1039,123.4,123.31,0.1]
[1720150070614,15.0,123.42,123.31,0.1]
[1720150070843,32.8569,123.41,123.31,0.1]
[1720150071350,0.17,123.4,123.31,0.1]
[1720150071848,12.8569,123.41,123.31,0.1]
[1720150072837,12.8569,123.41,123.31,8.2091]
[1720150073039,12.8569,123.41,123.32,0.17]
[1720150073336,12.8569,123.41,123.31,0.1]
[1720150073741,12.8569,123.41,123.31,20.1]
[1720150073932,12.8569,123.41,123.31,0.1]
[1720150074440,0.17,123.4,123.31,0.1]
[1720150074615,12.8569,123.41,123.31,0.1]
[1720150075138,12.8569,123.41,123.31,20.1]
[1720150075442,12.8569,123.41,123.28,67.6512766]
[1720150075628,12.8569,123.41,123.28,75.7622766]
[1720150075836,12.8569,123.41,123.29,8.1107]
[1720150076154,12.8569,123.41,123.28,87.9294766]
[1720150076319,12.8569,123.41,123.29,8.1107]
[1720150076639,12.8569,123.41,123.28,39.2694766]
[1720150077320,147.42196908,123.4,123.26,6.64410633]
[1720150077521,147.42196908,123.4,123.22,8.1152]
[1720150077522,8.1064,123.36,123.22,8.1152]
[1720150077720,167.68206908,123.4,123.21,20.3897]
[1720150077721,31.4376,123.33,123.21,0.1]
[1720150077943,31.4376,123.33,123.21,6.88906083]
[1720150078158,31.4376,123.33,123.21,27.17916083]
[1720150078352,31.4376,123.33,123.22,8.1155]
[1720150078641,31.4376,123.33,123.21,27.17916083]
[1720150078854,0.17,123.32,123.21,6.88906083]
[1720150079024,31.4376,123.33,123.21,6.88906083]
[1720150079226,0.17,123.32,123.21,6.88906083]